fUSD/lending_fUSD_20250702
["ID","MTS","AMOUNT","RATE_DAILY","PERIOD"]
[369056828,1751447423340,-15000.0,0.0004,120]
[369056829,1751447423368,-15000.0,0.0004,120]
[369056830,1751447423394,-12500.0,0.0004,120]
[369056831,1751447423420,-22078.08,0.0004,120]
[369056832,1751447423446,-8621.84,0.0004,120]
[369056833,1751447423472,-499.99,0.0004,120]
[369056834,1751447423499,-664.96,0.0004,120]
[369056835,1751447423526,-636.01,0.0004,120]
[369056836,1751447423553,-535.86,0.0004,120]
[369056837,1751447423581,-836.11932155,0.0004,120]
[369056838,1751447423609,-227.48,0.0004,120]
[369056839,1751447423636,-593.69,0.0004,120]
[369056840,1751447423662,-150.0,0.0004,30]
[369056841,1751447423690,-150.0,0.0004,30]
[369056842,1751447423717,-5000.0,0.0004,120]
[369056843,1751447423745,-600.0,0.0004002,60]
[369056844,1751447423772,-247.87067827,0.0004002,60]
[369056845,1751447423799,-370.41857,0.00040088,30]
[369056846,1751447423828,-15000.0,0.000401,120]
[369056847,1751447423854,-15000.0,0.000401,120]
[369056848,1751447423886,-15000.0,0.000401,120]
[369056849,1751447423914,-15000.0,0.000401,120]
[369056850,1751447423943,-22500.0,0.00040125,120]
[369056851,1751447423970,-12500.0,0.00040125,120]
[369056852,1751447423997,-12500.0,0.00040125,120]
[369056853,1751447424024,-15000.0,0.000402,120]
[369056854,1751447424052,-15000.0,0.000402,120]
[369056855,1751447424079,-15000.0,0.000402,120]
[369056856,1751447424106,-22500.0,0.0004025,120]
[369056857,1751447424132,-12500.0,0.0004025,120]
[369056858,1751447424158,-12500.0,0.0004025,120]
[369056859,1751447424186,-370.41857,0.00040288,30]
[369056860,1751447424218,-3000.0,0.00040294,60]
[369056861,1751447424246,-15000.0,0.000403,120]
[369056862,1751447424272,-15000.0,0.000403,120]
[369056863,1751447424298,-15000.0,0.000403,120]
[369056864,1751447424325,-15000.0,0.000403,120]
[369056865,1751447424352,-11169.4,0.00040308,117]
[369056866,1751447424379,-22500.0,0.00040375,120]
[369056867,1751447424405,-12500.0,0.00040375,120]
[369056868,1751447424446,-12500.0,0.00040375,120]
[369056869,1751447424474,-1000.0,0.000404,120]
[369056870,1751447424503,-15000.0,0.000404,120]
[369056871,1751447424531,-15000.0,0.000404,120]
[369056872,1751447424559,-15000.0,0.000404,120]
[369056873,1751447424586,-15000.0,0.000404,120]
[369056874,1751447424613,-370.41857,0.00040488,30]
[369056875,1751447424639,-10000.0,0.000405,120]
[369056876,1751447424666,-15000.0,0.000405,120]
[369056877,1751447424695,-15000.0,0.000405,120]
[369056878,1751447424722,-15000.0,0.000405,120]
[369056879,1751447424750,-12500.0,0.000405,120]
[369056880,1751447424778,-500.0,0.0004055,120]
[369056881,1751447424807,-5000.0,0.00040579,120]
[369056882,1751447424835,-15000.0,0.000406,120]
[369056883,1751447424863,-15000.0,0.000406,120]
[369056884,1751447424890,-15000.0,0.000406,120]
[369056885,1751447424918,-12500.0,0.00040625,120]
[369056886,1751447424945,-12500.0,0.00040625,120]
[369056887,1751447424973,-370.41857,0.00040688,30]
[369056888,1751447425000,-15000.0,0.000407,120]
[369056889,1751447425028,-15000.0,0.000407,120]
[369056890,1751447425057,-15000.0,0.000407,120]
[369056891,1751447425085,-12500.0,0.0004075,120]
[369056892,1751447425303,-12500.0,0.0004075,120]
[369056893,1751447425332,-15000.0,0.000408,120]
[369056894,1751447425359,-15000.0,0.000408,120]
[369056895,1751447425386,-12500.0,0.00040875,120]
[369056896,1751447425411,-12500.0,0.00040875,120]
[369056897,1751447425436,-370.41857,0.00040888,30]
[369056898,1751447425461,-125000.0,0.000409,90]
[369056899,1751447425487,-15000.0,0.000409,120]
[369056900,1751447425514,-15000.0,0.000409,120]
[369056901,1751447425541,-15000.0,0.000409,120]
[369056902,1751447425568,-2353.760277,0.00040998,30]
[369056903,1751447425594,-10000.0,0.00041,30]
[369056904,1751447425619,-303.57846266,0.00041,120]
[369056905,1751447425648,-324.44813169,0.00041,120]
[369056906,1751447425676,-431.50425779,0.00041,120]
[369056907,1751447425703,-1022.49,0.00041,30]
[369056908,1751447425733,-1508.80518329,0.00041,88]
[369056909,1751447425760,-322.0,0.00041,120]
[369056910,1751447425785,-1999.99999701,0.00041,120]
[369056911,1751447425812,-189650.0,0.00041,120]
[369056912,1751447425839,-12500.0,0.00041,120]
[369056913,1751447425865,-12500.0,0.00041,120]
[369056914,1751447425890,-15000.0,0.00041,120]
[369056915,1751447425916,-15000.0,0.00041,120]
[369056916,1751447425941,-15000.0,0.00041,120]
[369056917,1751447425966,-200.0,0.00041023,120]
[369056918,1751447425991,-200.0,0.00041041,120]
[369056919,1751447426015,-152.0,0.00041041,31]
[369056920,1751447426040,-370.41857,0.00041088,30]
[369056921,1751447426065,-700.0,0.00041095,120]
[369056922,1751447426090,-700.0,0.00041095,120]
[369056923,1751447426116,-700.0,0.00041095,120]
[369056924,1751447426141,-700.0,0.00041095,120]
[369056925,1751447426167,-700.0,0.00041095,120]
[369056926,1751447426193,-700.0,0.00041095,120]
[369056927,1751447426218,-700.0,0.00041095,120]
[369056928,1751447426248,-311.56844768,0.00041095,120]
[369056929,1751447426274,-700.0,0.00041095,120]
[369056930,1751447426302,-700.0,0.00041095,120]
[369056931,1751447426326,-700.0,0.00041095,120]
[369056932,1751447426350,-700.0,0.00041095,120]
[369056933,1751447426375,-460.0,0.00041095,30]
[369056934,1751447426401,-574.55957867,0.00041095,30]
[369056935,1751447426427,-500.0,0.00041095,120]
[369056936,1751447426451,-500.0,0.00041095,120]
[369056937,1751447426475,-500.0,0.00041095,120]
[369056938,1751447426500,-500.0,0.00041095,120]
[369056939,1751447426526,-500.0,0.00041095,120]
[369056940,1751447426551,-500.0,0.00041095,120]
[369056941,1751447426577,-500.0,0.00041095,120]
[369056942,1751447426602,-500.0,0.00041095,120]
[369056943,1751447426627,-500.0,0.00041095,120]
[369056944,1751447426653,-500.0,0.00041095,120]
[369056945,1751447426678,-500.0,0.00041095,120]
[369056946,1751447426704,-432.96481346,0.00041095,120]
[369056947,1751447426732,-602.54740676,0.00041095,30]
[369056948,1751447426761,-999.0,0.00041095,120]
[369056949,1751447426787,-4000.0,0.00041096,30]
[369056950,1751447426812,-500.0,0.00041096,30]
[369056951,1751447426837,-500.0,0.00041096,30]
[369056952,1751447426863,-500.0,0.00041096,30]
[369056953,1751447426887,-500.0,0.00041096,30]
[369056954,1751447426913,-500.0,0.00041096,30]
[369056955,1751447426938,-500.0,0.00041096,30]
[369056956,1751447426964,-500.0,0.00041096,30]
[369056957,1751447426989,-500.0,0.00041096,30]
[369056958,1751447427015,-500.0,0.00041096,30]
[369056959,1751447427040,-500.0,0.00041096,30]
[369056960,1751447427065,-500.0,0.00041096,30]
[369056961,1751447427090,-500.0,0.00041096,30]
[369056962,1751447427116,-500.0,0.00041096,30]
[369056963,1751447427141,-500.0,0.00041096,30]
[369056964,1751447427167,-500.0,0.00041096,30]
[369056965,1751447427195,-500.0,0.00041096,30]
[369056966,1751447427219,-500.0,0.00041096,30]
[369056967,1751447427244,-500.0,0.00041096,30]
[369056968,1751447427272,-500.0,0.00041096,30]
[369056969,1751447427299,-500.0,0.00041096,30]
[369056970,1751447427326,-500.0,0.00041096,30]
[369056971,1751447427353,-500.0,0.00041096,30]
[369056972,1751447427381,-500.0,0.00041096,30]
[369056973,1751447427409,-500.0,0.00041096,30]
[369056974,1751447427435,-500.0,0.00041096,30]
[369056975,1751447427462,-500.0,0.00041096,30]
[369056976,1751447427487,-500.0,0.00041096,30]
[369056977,1751447427513,-500.0,0.00041096,30]
[369056978,1751447427539,-500.0,0.00041096,30]
[369056979,1751447427566,-500.0,0.00041096,30]
[369056980,1751447427593,-500.0,0.00041096,30]
[369056981,1751447427619,-500.0,0.00041096,30]
[369056982,1751447427647,-500.0,0.00041096,30]
[369056983,1751447427674,-500.0,0.00041096,30]
[369056984,1751447427701,-500.0,0.00041096,30]
[369056985,1751447427728,-500.0,0.00041096,30]
[369056986,1751447427755,-500.0,0.00041096,30]
[369056987,1751447427781,-500.0,0.00041096,30]
[369056988,1751447427808,-500.0,0.00041096,30]
[369056989,1751447427834,-500.0,0.00041096,30]
[369056990,1751447427860,-500.0,0.00041096,30]
[369056991,1751447427886,-500.0,0.00041096,30]
[369056992,1751447427913,-383.0,0.00041096,30]
[369056993,1751447427938,-500.0,0.00041096,30]
[369056994,1751447427964,-500.0,0.00041096,30]
[369056995,1751447427990,-500.0,0.00041096,30]
[369056996,1751447428015,-500.0,0.00041096,30]
[369056997,1751447428041,-500.0,0.00041096,30]
[369056998,1751447428244,-500.0,0.00041096,30]
[369056999,1751447428272,-500.0,0.00041096,30]
[369057000,1751447428299,-500.0,0.00041096,30]
[369057001,1751447428323,-500.0,0.00041096,30]
[369057002,1751447428349,-500.0,0.00041096,30]
[369057003,1751447428375,-500.0,0.00041096,30]
[369057004,1751447428402,-500.0,0.00041096,30]
[369057005,1751447428428,-500.0,0.00041096,30]
[369057006,1751447428456,-500.0,0.00041096,30]
[369057007,1751447428481,-500.0,0.00041096,30]
[369057008,1751447428508,-500.0,0.00041096,30]
[369057009,1751447428536,-500.0,0.00041096,30]
[369057010,1751447428563,-500.0,0.00041096,30]
[369057011,1751447428591,-500.0,0.00041096,30]
[369057012,1751447428619,-500.0,0.00041096,30]
[369057013,1751447428647,-500.0,0.00041096,30]
[369057014,1751447428675,-500.0,0.00041096,30]
[369057015,1751447428702,-500.0,0.00041096,30]
[369057016,1751447428729,-501.0,0.00041096,30]
[369057017,1751447428758,-500.0,0.00041096,30]
[369057018,1751447428786,-501.0,0.00041096,30]
[369057019,1751447428818,-180.26,0.00041096,120]
[369057020,1751447428845,-531.7299775,0.00041096,31]
[369057021,1751447428872,-15000.0,0.000411,120]
[369057022,1751447428899,-15000.0,0.000411,120]
[369057023,1751447428925,-14657.38,0.000411,120]
[369057024,1751447428953,-284.41,0.000411,120]
[369057025,1751447428981,-165.90591345,0.000411,120]
[369057026,1751447429009,-165.90591345,0.000411,120]
[369057027,1751447429036,-165.90591345,0.000411,120]
[369057028,1751447429063,-165.9,0.000411,120]
[369057029,1751447429089,-196.75,0.000411,120]
[369057030,1751447429115,-153.03189438,0.000411,120]
[369057031,1751447429142,-153.03189438,0.000411,120]
[369057032,1751447429167,-153.03,0.000411,120]
[369057033,1751447429196,-206.42145787,0.000411,120]
[369057034,1751447429223,-206.42,0.000411,120]
[369057035,1751447429248,-1324.6226858,0.00041111,120]
[369057036,1751447429274,-600.0,0.00041116,60]
[369057037,1751447429299,-12500.0,0.00041125,120]
[369057038,1751447429325,-12500.0,0.00041125,120]
[369057039,1751447429351,-176.0,0.000412,120]
[369057040,1751447429378,-455.91,0.000412,120]
[369057041,1751447429413,-15000.0,0.000412,120]
[369057042,1751447429442,-15000.0,0.000412,120]
[369057043,1751447429469,-12500.0,0.0004125,120]
[369057044,1751447429495,-12500.0,0.0004125,120]
[369057045,1751447429524,-152.0,0.00041266,31]
[369057046,1751447429551,-7060.0,0.00041284,120]
[369057047,1751447429579,-370.41857,0.00041288,30]
[369057048,1751447429608,-500.0,0.00041299,60]
[369057049,1751447429653,-198.97225457,0.00041299,60]
[369057050,1751447429703,-300.0,0.00041299,60]
[369057051,1751447429745,-500.0,0.00041299,60]
[369057052,1751447429793,-500.0,0.00041299,60]
[369057053,1751447429837,-300.0,0.00041299,60]
[369057054,1751447429884,-15000.0,0.000413,120]
[369057055,1751447429935,-15000.0,0.000413,120]
[369057056,1751447429976,-12500.0,0.00041375,120]
[369057057,1751447430017,-3000.0,0.0004139,60]
[369057058,1751447430061,-15000.0,0.000414,120]
[369057059,1751447430109,-15000.0,0.000414,120]
[369057060,1751447430163,-370.41857,0.00041488,30]
[369057061,1751447430202,-152.0,0.0004149,31]
[369057062,1751447430242,-1000.0,0.000415,120]
[369057063,1751447430284,-10000.0,0.000415,120]
[369057064,1751447430330,-15000.0,0.000415,120]
[369057065,1751447430370,-15000.0,0.000415,120]
[369057066,1751447430409,-12500.0,0.000415,120]
[369057067,1751447430453,-500.0,0.00041525,117]
[369057068,1751447430504,-300.0,0.00041525,117]
[369057069,1751447430562,-191.87295522,0.00041525,117]
[369057070,1751447430614,-300.0,0.00041525,117]
[369057071,1751447430662,-500.0,0.00041525,117]
[369057072,1751447430707,-500.0,0.00041525,117]
[369057074,1751447430749,-300.0,0.00041525,117]
[369057075,1751447430790,-1000.0,0.0004155,120]
[369057076,1751447430831,-15000.0,0.000416,120]
[369057077,1751447430872,-15000.0,0.000416,120]
[369057078,1751447430912,-12500.0,0.00041625,120]
[369057079,1751447430954,-370.41857,0.00041688,30]
[369057080,1751447431006,-28092.27008558,0.0004169,30]
[369057081,1751447431055,-15000.0,0.000417,120]
[369057082,1751447431101,-15000.0,0.000417,120]
[369057083,1751447431145,-152.0,0.00041715,31]
[369057084,1751447431190,-12500.0,0.0004175,120]
[369057085,1751447431230,-12500.0,0.0004175,120]
[369057086,1751447431271,-9999.999,0.0004179,30]
[369057087,1751447431313,-500.0,0.00041799,120]
[369057088,1751447431352,-300.0,0.00041799,120]
[369057089,1751447431392,-185.02695779,0.00041799,120]
[369057090,1751447431430,-300.0,0.00041799,120]
[369057091,1751447431481,-500.0,0.00041799,120]
[369057092,1751447431526,-500.0,0.00041799,120]
[369057093,1751447431574,-322.55969074,0.00041799,120]
[369057094,1751447431621,-300.0,0.00041799,120]
[369057096,1751447431669,-1000000.0,0.000418,120]
[369057097,1751447431708,-999999.0,0.000418,120]
[369057098,1751447431737,-15000.0,0.000418,120]
[369057099,1751447431766,-15000.0,0.000418,120]
[369057100,1751447431796,-12500.0,0.00041875,120]
[369057101,1751447431824,-12500.0,0.00041875,120]
[369057104,1751447432195,-370.41857,0.00041888,30]
[369057110,1751447432267,-15000.0,0.000419,120]
[369057114,1751447432295,-15000.0,0.000419,120]
[369057118,1751447432323,-581459.00345151,0.0004199,60]
[369057121,1751447432349,-300.0,0.00042,30]
[369057125,1751447432376,-20165.68271375,0.00042,30]
[369057129,1751447432403,-70000.0,0.00042,30]
[369057133,1751447432428,-500.0,0.00042,30]
[369057137,1751447432466,-750.0,0.00042,30]
[369057141,1751447432496,-931.33392644,0.00042,30]
[369057145,1751447432524,-1000.0,0.00042,120]
[369057149,1751447432552,-400.0,0.00042,120]
[369057153,1751447432580,-602.7670608,0.00042,120]
[369057157,1751447432606,-300.51136679,0.00042,120]
[369057161,1751447432633,-801.62086666,0.00042,30]
[369057164,1751447432659,-364.86947302,0.00042,30]
[369057168,1751447432687,-131291.15,0.00042,60]
[369057172,1751447432715,-15000.0,0.00042,120]
[369057176,1751447432742,-15000.0,0.00042,120]
[369057180,1751447432770,-12500.0,0.00042,120]
[369057184,1751447432796,-12500.0,0.00042,120]
[369057188,1751447432825,-15000.0,0.000421,120]
[369057191,1751447432852,-15000.0,0.000421,120]
[369057195,1751447432879,-12500.0,0.00042125,120]
[369057199,1751447432905,-12500.0,0.00042125,120]
[369057203,1751447432932,-2971.52263334,0.000422,120]
[369057359,1751447439343,-353.49,0.00015331,2]
[369057361,1751447439352,-210.827,0.00015341,2]
[369057363,1751447439364,-576.10453027,0.00015341,2]
[369057367,1751447439393,-13508.81846973,0.00015341,2]
[369057369,1751447439402,-1000.0,0.00015342,2]
[369057371,1751447439411,-200.0,0.00015343,7]
[369057373,1751447439420,-166.99,0.00015361,2]
[369057375,1751447439429,-514.0,0.00015695,2]
[369057377,1751447439438,-200.0,0.00015695,2]
[369057379,1751447439448,-300.0,0.00015696,2]
[369057381,1751447439457,-207.4,0.00015696,2]
[369057383,1751447439466,-300.0,0.00015696,2]
[369057385,1751447439484,-500.0,0.00015696,2]
[369057387,1751447439495,-500.0,0.00015696,2]
[369057389,1751447439505,-500.0,0.00015696,2]
[369057391,1751447439514,-500.0,0.00015696,2]
[369057393,1751447439524,-500.0,0.00015696,2]
[369057395,1751447439534,-500.0,0.00015696,2]
[369057397,1751447439543,-500.0,0.00015696,2]
[369057399,1751447439552,-500.0,0.00015696,2]
[369057401,1751447439563,-500.0,0.00015696,2]
[369057403,1751447439572,-500.0,0.00015696,2]
[369057405,1751447439583,-500.0,0.00015696,2]
[369057407,1751447439592,-434.16075058,0.00015696,2]
[369057409,1751447439602,-300.48,0.00015861,2]
[369057412,1751447439612,-305.99,0.00015861,2]
[369057413,1751447439622,-450.0,0.00015945,2]
[369057415,1751447439631,-302.78,0.00016085,2]
[369057417,1751447439640,-300.23,0.00016085,2]
[369057419,1751447439650,-305.48,0.00016085,2]
[369057421,1751447439659,-462.25,0.000161,2]
[369057423,1751447439670,-3458.0,0.00016185,2]
[369057426,1751447439680,-362.91,0.000162,2]
[369057428,1751447439691,-150.0,0.0001624,2]
[369057429,1751447439702,-150.0,0.00016243,2]
[369057431,1751447439712,-150.0,0.00016244,2]
[369057433,1751447439725,-300.0,0.00016244,2]
[369057435,1751447439735,-731.34,0.0001625,2]
[369057437,1751447439744,-304.67,0.0001625,2]
[369057439,1751447439753,-302.92,0.0001625,2]
[369057441,1751447439763,-843.8413304,0.00016256,2]
[369057443,1751447439773,-150.0,0.00016264,2]
[369057445,1751447439783,-150.0,0.00016266,2]
[369057448,1751447439793,-150.0,0.00016268,2]
[369057450,1751447439803,-150.0,0.00016268,2]
[369057452,1751447439812,-150.0,0.0001627,2]
[369057454,1751447439822,-1029.19552711,0.00016271,2]
[369057484,1751447440107,-301.18,0.00016276,2]
[369057488,1751447440137,-304.63,0.00016276,2]
[369057490,1751447440147,-302.31,0.00016277,2]
[369057492,1751447440156,-301.66,0.00016277,2]
[369057494,1751447440165,-304.05,0.00016278,2]
[369057496,1751447440175,-303.46,0.00016278,2]
[369057498,1751447440184,-302.45,0.0001628,2]
[369057500,1751447440198,-305.12,0.0001628,2]
[369057502,1751447440207,-301.45,0.0001628,2]
[369057504,1751447440216,-301.82,0.00016282,2]
[369057506,1751447440226,-300.53,0.00016282,2]
[369057508,1751447440237,-300.52,0.00016282,2]
[369057510,1751447440249,-150.0,0.00016286,2]
[369057511,1751447440260,-304.8,0.00016286,2]
[369057513,1751447440269,-302.33,0.00016286,2]
[369057515,1751447440279,-301.41,0.00016286,2]
[369057517,1751447440288,-150.0,0.0001629,2]
[369057519,1751447440298,-150.0,0.0001629,2]
[369057521,1751447440308,-150.0,0.00016291,2]
[369057523,1751447440317,-294.184532,0.00016292,2]
[369057525,1751447440327,-150.0,0.00016292,2]
[369057527,1751447440336,-150.0,0.00016295,2]
[369057529,1751447440346,-1000.0,0.00016299,2]
[369057531,1751447440356,-1060.4241,0.000163,2]
[369057533,1751447440365,-355.8,0.000163,2]
[369057535,1751447440375,-456.47,0.000163,2]
[369057537,1751447440386,-150.0,0.00016301,2]
[369057539,1751447440395,-150.0,0.00016302,2]
[369057541,1751447440405,-150.0,0.00016306,2]
[369057543,1751447440414,-150.0,0.00016306,2]
[369057546,1751447440424,-150.0,0.00016306,2]
[369057548,1751447440434,-150.0,0.00016311,2]
[369057550,1751447440443,-150.62751857,0.00016311,2]
[369057551,1751447440452,-300.45,0.00016313,2]
[369057553,1751447440462,-150.0,0.00016318,2]
[369057555,1751447440471,-150.0,0.00016329,2]
[369057557,1751447440481,-150.0,0.00016329,2]
[369057559,1751447440491,-150.0,0.00016333,2]
[369057561,1751447440500,-150.0,0.00016333,2]
[369057563,1751447440510,-150.0,0.00016334,2]
[369057566,1751447440521,-303.14,0.00016336,2]
[369057568,1751447440530,-304.61,0.00016336,2]
[369057570,1751447440539,-6905.66837779,0.00016338,2]
[369057572,1751447440549,-538.51828796,0.00016338,2]
[369057574,1751447440558,-2745.1247,0.00016338,2]
[369057575,1751447440568,-1000.0,0.00016349,2]
[369057577,1751447440578,-150.0,0.00016351,2]
[369057579,1751447440588,-150.0,0.00016351,2]
[369057581,1751447440599,-150.0,0.00016361,2]
[369057583,1751447440609,-150.0,0.00016361,2]
[369057585,1751447440619,-1000.0,0.00016362,2]
[369057587,1751447440628,-150.0,0.00016363,2]
[369057589,1751447440638,-150.0,0.00016366,2]
[369057591,1751447440648,-150.0,0.00016368,2]
[369057593,1751447440657,-150.0,0.00016368,2]
[369057596,1751447440671,-150.0,0.00016373,2]
[369057598,1751447440681,-150.0,0.00016375,2]
[369057600,1751447440692,-195.6223435,0.00016377,2]
[369057602,1751447440702,-150.0,0.00016384,2]
[369057603,1751447440712,-304.85,0.00016385,2]
[369057604,1751447440723,-150.0,0.00016386,2]
[369057605,1751447440733,-303.59,0.00016388,2]
[369057606,1751447440743,-303.28,0.00016388,2]
[369057607,1751447440753,-150.0,0.00016394,2]
[369057608,1751447440763,-150.0,0.00016396,2]
[369057609,1751447440773,-1000.0,0.00016397,2]
[369057610,1751447440783,-355.6,0.000164,2]
[369057611,1751447440792,-456.47,0.000164,2]
[369057612,1751447440802,-355.8,0.000164,2]
[369057613,1751447440811,-163.85,0.000164,2]
[369057614,1751447440820,-171.21,0.000164,2]
[369057615,1751447440830,-150.0,0.000164,2]
[369057616,1751447440839,-150.0,0.00016407,2]
[369057617,1751447440849,-150.0,0.00016409,2]
[369057618,1751447440859,-150.0,0.00016412,2]
[369057619,1751447440869,-150.0,0.00016422,2]
[369057620,1751447440879,-150.0,0.00016425,2]
[369057621,1751447440888,-150.0,0.0001643,2]
[369057622,1751447440898,-150.0,0.00016432,2]
[369057623,1751447440908,-150.0,0.00016437,2]
[369057625,1751447440918,-301.99,0.00016438,2]
[369057627,1751447440928,-490.0,0.00016438,2]
[369057629,1751447440938,-598.23202973,0.00016438,2]
[369057631,1751447440947,-494.68760908,0.00016438,2]
[369057634,1751447440957,-490.0,0.00016438,2]
[369057636,1751447440967,-490.0,0.00016438,2]
[369057638,1751447440976,-490.0,0.00016438,2]
[369057640,1751447440986,-490.0,0.00016438,2]
[369057642,1751447440996,-91.94200871,0.00016438,2]
[369057751,1751447443170,-358.17951175,0.00016438,2]
[369057752,1751447443179,-151.0,0.00016438,2]
[369057753,1751447443192,-505.04002218,0.00016438,2]
[369057754,1751447443201,-490.0,0.00016438,2]
[369057755,1751447443211,-390.62942773,0.00016438,2]
[369057756,1751447443224,-164.20747906,0.00016438,2]
[369057757,1751447443234,-490.0,0.00016438,2]
[369057758,1751447443245,-490.0,0.00016438,2]
[369057759,1751447443254,-151.0,0.00016438,2]
[369057760,1751447443266,-303.86271541,0.00016438,2]
[369057761,1751447443276,-490.0,0.00016438,2]
[369057762,1751447443286,-151.0,0.00016438,2]
[369057763,1751447443297,-492.0974312,0.00016438,2]
[369057764,1751447443308,-490.0,0.00016438,2]
[369057765,1751447443318,-491.91582942,0.00016438,2]
[369057766,1751447443328,-189.77494565,0.00016438,2]
[369057768,1751447443338,-490.0,0.00016438,2]
[369057770,1751447443347,-439.34228137,0.00016438,2]
[369057772,1751447443357,-73.03593228,0.00016438,2]
[369057773,1751447443369,-416.96406772,0.00016438,2]
[369057774,1751447443378,-71.63591997,0.00016438,2]
[369057775,1751447443428,-297.69207694,0.00016438,2]
[369057776,1751447443440,-553.49200309,0.00016438,2]
[369057777,1751447443450,-620.52,0.00016438,2]
[369057778,1751447443460,-490.0,0.00016438,2]
[369057779,1751447443470,-490.0,0.00016438,2]
[369057781,1751447443479,-490.0,0.00016438,2]
[369057783,1751447443489,-490.0,0.00016438,2]
[369057784,1751447443498,-490.0,0.00016438,2]
[369057786,1751447443508,-490.0,0.00016438,2]
[369057788,1751447443519,-490.0,0.00016438,2]
[369057789,1751447443528,-189.37889691,0.00016438,2]
[369057791,1751447443993,-300.62110309,0.00016438,2]
[369057792,1751447444003,-490.0,0.00016438,2]
[369057793,1751447444012,-569.68521688,0.00016438,2]
[369057794,1751447444022,-2155.539602,0.00016438,2]
[369057795,1751447444031,-490.0,0.00016438,2]
[369057796,1751447444041,-2155.539602,0.00016438,2]
[369057797,1751447444051,-2155.539602,0.00016438,2]
[369057798,1751447444060,-490.0,0.00016438,2]
[369057799,1751447444070,-224.81298249,0.00016438,2]
[369057800,1751447444079,-2155.539602,0.00016438,2]
[369057801,1751447444088,-2155.539602,0.00016438,2]
[369057802,1751447444098,-1565.82063341,0.00016438,2]
[369057803,1751447444129,-589.71896859,0.00016438,2]
[369057804,1751447444139,-232.01433216,0.00016438,2]
[369057805,1751447444151,-133.60578642,0.00016438,2]
[369057806,1751447444161,-331.57663211,0.00016438,2]
[369057807,1751447445964,-150.0,0.000411,30]
[369057808,1751447445993,-12028.47736666,0.000422,120]
[369057809,1751447446020,-12500.0,0.0004225,120]
[369057810,1751447446046,-151.0,0.000423,120]
[369057811,1751447446071,-150.0,0.00042335,30]
[369057812,1751447446097,-12500.0,0.00042375,120]
[369057813,1751447446122,-153.789524,0.00042396,120]
[369057814,1751447446147,-1216.76196744,0.000424,120]
[369057815,1751447446173,-999.0,0.00042465,120]
[369057816,1751447446201,-3000.0,0.00042486,60]
[369057817,1751447446226,-10000.0,0.000425,120]
[369057818,1751447446253,-30409.13649592,0.000425,120]
[369057819,1751447446282,-12500.0,0.000425,120]
[369057821,1751447446313,-1000.0,0.000426,120]
[369057822,1751447446338,-12500.0,0.00042625,120]
[369057823,1751447446364,-12500.0,0.0004275,120]
[369057826,1751447446390,-1000000.0,0.000428,120]
[369057827,1751447446418,-1000.0,0.000428,120]